bitfinex/quotes_ETHUSD_20241023
["timestamp","ask_amount","ask_price","bid_price","bid_amount"]
[1729677968788,1.73327767,2579.3,2579.1,0.8104]
[1729677968990,5.61014767,2579.4,2579.1,0.8104]
[1729677970595,1.73327767,2579.3,2579.1,0.8104]
[1729677972407,5.61014767,2579.4,2579.1,0.8104]
[1729677972977,5.61000767,2579.5,2579.1,0.8104]
[1729677973176,1.73327767,2579.4,2579.1,0.8104]
[1729677973432,5.61000767,2579.5,2579.1,0.8104]
[1729677973658,3.87669,2579.6,2579.1,6.42095767]
[1729677973810,0.60689983,2579.8,2579.3,4.68144]
[1729677974131,3.87584,2580.1,2579.6,4.68098]
[1729677974354,3.87574,2580.2,2579.9,0.01]
[1729677974636,0.60677223,2580.1,2579.9,0.01]
[1729677974792,3.87574,2580.2,2579.9,0.01]
[1729677975194,5.60901767,2580.2,2579.9,0.01]
[1729677975406,1.73327767,2580.2,2579.9,3.8861]
[1729677975747,0.60674027,2580.5,2580.1,0.01]
[1729677975945,1.73327767,2580.4,2580.1,3.88581]
[1729677976112,2.34001794,2580.5,2580.1,3.88581]
[1729677976303,4.48195027,2580.5,2580.1,0.01]
[1729677976501,3.87537,2580.4,2580.1,0.01]
[1729677976744,0.60674027,2580.5,2580.1,0.01]
[1729677976908,7.75035,2580.6,2580.1,0.01]
[1729677977111,3.87535,2580.5,2580.1,0.01]
[1729677977631,7.48154729,2580.8,2580.3,0.01]
[1729677977815,3.875,2580.7,2580.3,0.01]
[1729677978953,3.87485,2580.8,2580.3,0.01]
[1729677979250,3.87507,2580.6,2580.3,0.01]
[1729677980043,3.87524,2580.5,2580.2,0.755]
[1729677980241,3.87546,2580.4,2580.1,0.01]
[1729677980442,3.87521,2580.5,2580.1,0.01]
[1729677981441,7.75055,2580.5,2580.1,0.01]
[1729677982149,3.87521,2580.5,2580.1,0.01]
[1729677984338,3.87501,2580.7,2580.1,0.01]
[1729677984547,3.87507,2580.6,2580.1,3.8858]
[1729677984949,3.87522,2580.5,2580.1,3.8858]
[1729677985153,3.87522,2580.5,2580.1,0.01]
[1729677985860,3.87522,2580.5,2580.1,3.8858]
[1729677986638,3.87522,2580.5,2580.2,0.8304]
[1729677987023,3.87501,2580.7,2580.2,0.8304]
[1729677987365,7.75007,2580.7,2580.2,0.8304]
[1729677987667,4.48139025,2580.9,2580.3,0.01]
[1729677987864,3.87492,2580.7,2580.3,0.01]
[1729677988038,4.22102,2580.7,2580.3,0.01]
[1729677991399,8.09607,2580.7,2580.3,0.01]
[1729677991600,3.87508,2580.6,2580.2,0.8304]
[1729677991875,7.7506,2580.5,2580.2,0.8304]
[1729677993450,3.87539,2580.4,2580.2,0.8304]
[1729677993892,3.87524,2580.5,2580.2,0.8304]
[1729677994898,0.3461,2580.7,2580.2,0.8304]
[1729677995192,4.48136025,2580.9,2580.4,4.69773]
[1729677995476,3.87479,2580.8,2580.4,0.8225]
[1729677995677,4.48129025,2580.9,2580.4,4.69779]
[1729677995876,3.87463,2580.9,2580.4,4.69779]
[1729677996243,7.74936,2580.9,2580.4,4.69779]
[1729677996443,3.87463,2580.9,2580.4,4.69779]
[1729677996737,7.74934,2580.9,2580.4,4.69779]
[1729677997170,3.87463,2580.9,2580.4,0.8225]
[1729677997465,3.87478,2580.8,2580.4,0.8225]
[1729677998050,7.3924842,2580.8,2580.4,0.8225]
[1729677998279,3.87506,2580.6,2580.4,0.8225]
[1729677998963,11.2673542,2580.8,2580.4,0.8225]
[1729677999162,7.3924842,2580.8,2580.4,0.8225]
[1729678000188,3.87493,2580.7,2580.4,0.8225]
[1729678001987,3.87485,2580.8,2580.4,0.8225]
[1729678002293,3.87476,2580.8,2580.4,0.8225]
[1729678002665,3.87502,2580.7,2580.4,0.8225]
[1729678004357,1.73166564,2580.6,2580.4,0.8225]
[1729678006322,1.73166564,2580.7,2580.4,0.8225]
[1729678006699,1.73166564,2580.6,2580.4,0.8225]
[1729678007019,1.73166564,2580.7,2580.4,0.8225]
[1729678007318,1.73166564,2580.6,2580.4,0.8225]
[1729678007520,1.73166564,2580.7,2580.4,0.8225]
[1729678008023,3.87452,2581.0,2580.5,0.01]
[1729678008185,5.60618564,2581.0,2580.6,0.7994]
[1729678008622,3.3461,2581.3,2580.9,0.7994]
[1729678008820,4.73166564,2581.1,2580.9,0.7994]
[1729678009731,5.60584564,2581.2,2580.9,0.7994]
[1729678009900,1.73166564,2581.1,2580.9,0.7994]
[1729678010433,3.87418,2581.2,2580.9,0.7994]
[1729678011133,7.74844,2581.2,2580.9,0.7994]
[1729678011697,3.87418,2581.2,2580.9,0.7994]
[1729678012017,3.87446,2581.0,2580.8,0.01]
[1729678012223,3.87446,2581.0,2580.6,0.7799]
[1729678012406,3.87478,2580.8,2580.6,0.7799]
[1729678012613,0.3461,2580.8,2580.4,0.01]
[1729678012808,3.87515,2580.6,2580.4,0.01]
[1729678013005,3.87493,2580.7,2580.4,0.01]
[1729678013419,3.8751,2580.6,2580.4,0.01]
[1729678014247,3.87492,2580.7,2580.4,0.01]
[1729678016697,3.87436,2581.1,2580.7,0.01]
[1729678016894,4.22015,2581.3,2580.8,0.8017]
[1729678016895,3.87461,2580.9,2580.8,0.8017]
[1729678017093,3.87448,2581.0,2580.8,0.8017]
[1729678017538,0.3461,2580.9,2580.7,0.01]
[1729678017726,4.22076,2580.9,2580.7,0.01]
[1729678017930,3.87448,2581.0,2580.7,0.01]
[1729678018117,3.87448,2581.0,2580.7,0.7965]
[1729678018516,4.22036,2581.2,2580.7,0.7965]
[1729678018517,3.87426,2581.2,2580.7,5.138462]
[1729678018729,3.87432,2581.1,2580.7,1.263662]
[1729678019303,3.87454,2581.0,2580.7,0.477162]
[1729678019505,3.87454,2581.0,2580.7,0.01]
[1729678019705,3.87429,2581.2,2580.7,0.01]
[1729678020009,3.8738,2581.5,2580.9,0.01]
[1729678020203,4.22029,2581.2,2580.9,0.01]
[1729678020408,0.3461,2581.2,2580.9,0.01]
[1729678020747,3.87408,2581.3,2580.9,0.01]
[1729678020990,7.74824,2581.3,2580.9,0.01]
[1729678021910,3.87408,2581.3,2580.9,0.01]
[1729678022342,3.87431,2581.1,2580.9,0.01]
[1729678022639,3.87431,2581.1,2580.7,0.01]
[1729678022845,3.87431,2581.1,2580.7,0.864223]
[1729678023408,3.87472,2580.9,2580.7,0.01]
[1729678027245,3.87432,2581.1,2580.7,0.01]
[1729678027446,3.87447,2581.0,2580.7,0.01]
[1729678028269,3.87439,2581.1,2580.7,0.01]
[1729678028652,7.74881,2581.1,2580.7,0.01]
[1729678028986,3.87412,2581.3,2580.8,0.7603]
[1729678029179,3.95269704,2581.6,2581.2,0.7603]
[1729678029383,3.87379,2581.5,2581.2,0.7603]
[1729678029584,3.8739,2581.4,2581.2,0.7603]
[1729678030241,3.95269704,2581.6,2581.2,0.7603]
[1729678030438,3.8738,2581.5,2581.2,0.7603]
[1729678031390,0.60659704,2581.6,2581.3,0.01]
[1729678031686,3.893618,2581.9,2581.5,0.01]
[1729678036287,3.87327,2581.8,2581.5,0.01]
[1729678037059,3.893618,2581.9,2581.5,0.01]
[1729678038497,3.87326,2581.8,2581.5,0.01]
[1729678038860,3.87326,2581.8,2581.5,0.476661]
[1729678039061,3.893618,2581.9,2581.6,0.8303]
[1729678041700,7.766808,2581.9,2581.6,0.8303]
[1729678042001,3.893618,2581.9,2581.6,0.8303]
[1729678043695,7.766838,2581.9,2581.6,0.8303]
[1729678044207,3.893618,2581.9,2581.6,0.8303]
[1729678044381,5.62363936,2581.9,2581.6,0.8303]
[1729678044775,1.73002136,2581.8,2581.6,0.8303]
[1729678044977,9.49686936,2581.9,2581.6,0.8303]
[1729678045180,5.62363936,2581.9,2581.6,0.8303]
[1729678045709,1.73002136,2581.8,2581.6,0.8303]
[1729678045925,5.62363936,2581.9,2581.6,0.8303]
[1729678046977,1.73002136,2581.7,2581.6,0.8303]
[1729678047330,5.62363936,2581.9,2581.6,0.8303]
[1729678047628,1.73002136,2581.8,2581.6,0.8303]
[1729678047833,5.60343136,2581.7,2581.6,0.8303]
[1729678047984,3.87356,2581.6,2581.3,0.8069]
[1729678048187,4.239728,2581.9,2581.3,0.8069]
[1729678048188,5.60388136,2581.4,2581.3,0.8069]
[1729678048389,3.87386,2581.4,2581.3,0.8069]
[1729678051028,3.87386,2581.4,2581.2,0.01]
[1729678051694,7.74784,2581.4,2581.2,0.01]
[1729678052030,3.87386,2581.4,2581.2,0.01]
[1729678053636,3.87374,2581.5,2581.2,0.01]
[1729678055630,3.87327,2581.8,2581.4,0.01]
[1729678055795,5.60329136,2581.8,2581.4,0.01]
[1729678056340,3.87343,2581.7,2581.4,0.01]
[1729678056544,5.60345136,2581.7,2581.4,0.01]
[1729678059936,9.47699136,2581.7,2581.4,0.01]
[1729678060126,5.60345136,2581.7,2581.3,0.809]
[1729678060527,5.60345136,2581.7,2581.4,0.01]
[1729678060528,1.73002136,2581.6,2581.4,0.01]
[1729678060760,5.60366136,2581.6,2581.3,0.809]
[1729678060945,1.73002136,2581.6,2581.3,0.809]
[1729678061152,1.73002136,2581.6,2581.2,0.01]
[1729678061153,3.87394,2581.4,2581.2,0.01]
[1729678061955,7.74791,2581.4,2581.2,0.01]
[1729678062524,3.87394,2581.4,2581.2,0.01]
[1729678063234,3.87416,2581.2,2580.9,0.7666]
[1729678063420,3.87395,2581.4,2581.0,0.01]
[1729678063821,3.87377,2581.5,2581.2,0.01]
[1729678064061,8.0934,2581.6,2581.2,0.01]
[1729678064758,4.21973,2581.6,2581.2,0.01]
[1729678064956,3.87375,2581.5,2581.2,0.01]
[1729678066463,5.60377136,2581.5,2581.2,0.01]
[1729678068860,9.47756136,2581.5,2581.2,0.01]
[1729678069270,9.47761136,2581.5,2581.2,0.01]
[1729678069473,1.73002136,2581.4,2581.2,0.01]
[1729678070025,9.47757136,2581.5,2581.2,0.01]
[1729678070324,9.47814136,2581.3,2581.1,0.7504]
[1729678070646,1.73002136,2581.2,2581.1,0.7504]
[1729678071168,5.60403136,2581.3,2581.1,0.7504]
[1729678071554,3.87401,2581.3,2581.1,0.7504]
[1729678072468,1.73002136,2581.4,2581.1,0.7504]
[1729678072469,5.60388136,2581.4,2581.1,0.7504]
[1729678073170,3.87386,2581.4,2581.1,0.7504]
[1729678073383,3.87358,2581.6,2581.2,0.01]
[1729678073662,3.87371,2581.5,2581.4,0.01]
[1729678075363,5.60373136,2581.5,2581.4,0.01]
[1729678075571,5.60373136,2581.5,2581.1,0.7504]
[1729678075572,3.87388,2581.4,2581.2,0.01]
[1729678076631,5.60390136,2581.4,2581.2,0.01]
[1729678076876,3.87388,2581.4,2581.2,0.01]
[1729678079973,5.60390136,2581.4,2581.2,0.01]
[1729678080141,3.87388,2581.4,2581.2,0.01]
[1729678080333,5.60390136,2581.4,2581.2,0.01]
[1729678080753,1.73002136,2581.3,2581.2,0.01]
[1729678080958,5.60390136,2581.4,2581.2,0.01]
[1729678081216,3.87401,2581.3,2581.2,0.01]
[1729678081418,5.60390136,2581.4,2581.2,0.01]
[1729678082303,1.73002136,2581.3,2581.2,0.01]
[1729678082503,5.60390136,2581.4,2581.2,0.01]
[1729678083730,5.60410136,2581.3,2581.1,0.7504]
[1729678083934,5.60390136,2581.4,2581.0,0.01]
[1729678084095,3.87388,2581.4,2581.0,0.01]
[1729678084291,5.60390136,2581.4,2581.2,0.01]
[1729678084492,3.87388,2581.4,2581.2,0.01]
[1729678085428,3.87401,2581.3,2581.0,0.01]
[1729678085935,5.60403136,2581.3,2581.0,0.01]
[1729678086137,5.60390136,2581.4,2581.0,0.01]
[1729678086337,3.87401,2581.3,2581.0,0.01]
[1729678091539,5.60403136,2581.3,2581.0,0.01]
[1729678091931,3.87401,2581.3,2581.0,0.01]
[1729678092121,5.60403136,2581.3,2581.0,0.01]
[1729678094138,2.33650156,2581.4,2581.0,0.01]
[1729678094343,3.87402,2581.3,2581.0,0.01]
[1729678094703,2.33650156,2581.4,2581.0,0.01]
[1729678094907,6.21039156,2581.4,2581.0,0.01]
[1729678095146,4.4803702,2581.4,2581.0,0.01]
[1729678096455,6.21039156,2581.4,2581.0,0.01]
[1729678097745,4.4803702,2581.4,2581.0,0.01]
[1729678098815,0.6064802,2581.4,2581.2,0.01]
[1729678099012,5.60380136,2581.5,2581.2,0.01]
[1729678099354,3.87454,2581.0,2580.8,0.01]
[1729678099654,5.60456136,2581.0,2580.8,0.01]
[1729678099834,1.73002136,2581.1,2580.8,0.01]
[1729678100057,3.87434,2581.1,2580.8,0.01]
[1729678100242,4.22008,2581.4,2580.9,2.48912136]
[1729678100430,3.87398,2581.4,2580.9,4.6337]
[1729678100631,5.60400136,2581.4,2580.9,4.6337]
[1729678100849,9.47795136,2581.4,2580.9,4.6337]
[1729678101379,3.87403,2581.3,2580.9,4.6337]
[1729678101537,3.87403,2581.3,2580.9,5.72229705]
[1729678101870,3.87403,2581.3,2580.9,1.84769705]
[1729678102073,1.73002136,2581.3,2580.9,0.7591]
[1729678102274,3.87418,2581.2,2580.9,0.7591]
[1729678102478,5.60420136,2581.2,2580.9,0.7591]
[1729678103567,9.47849136,2581.2,2580.9,0.7591]
[1729678103892,5.60420136,2581.2,2580.9,0.7591]
[1729678104574,3.87418,2581.2,2580.9,0.7591]
[1729678105579,1.73002136,2581.3,2580.9,0.7591]
[1729678105779,5.60404136,2581.3,2580.9,0.7591]
[1729678106275,3.87402,2581.3,2580.9,0.7591]
[1729678106577,5.60404136,2581.3,2580.9,0.7591]
[1729678107280,3.87402,2581.3,2580.9,0.7591]
[1729678107573,3.87396,2581.4,2580.9,0.7591]
[1729678107799,1.73002136,2581.5,2581.1,0.01]
[1729678107954,6.21014327,2581.6,2581.2,0.7681]
[1729678108667,1.73002136,2581.5,2581.2,0.7681]
[1729678109043,5.60375136,2581.5,2581.2,0.7681]
[1729678110394,1.73002136,2581.3,2581.2,0.7681]
[1729678110742,1.73002136,2581.4,2581.2,0.7681]
[1729678111272,5.60375136,2581.5,2581.2,0.7681]
[1729678112687,1.73002136,2581.4,2581.2,0.7681]
[1729678113046,1.73002136,2581.3,2581.2,0.7681]
[1729678113382,5.60391136,2581.4,2581.2,0.7681]
[1729678114746,5.60391136,2581.4,2581.1,0.01]
[1729678114958,3.87389,2581.4,2581.1,0.01]
[1729678115594,5.60374136,2581.5,2581.1,0.01]
[1729678116207,5.60392136,2581.4,2581.1,0.01]
[1729678116700,3.8739,2581.4,2581.1,0.01]
[1729678116998,5.60374136,2581.5,2581.1,0.01]
[1729678117481,1.73002136,2581.4,2581.1,0.01]
[1729678117689,5.60393136,2581.4,2581.1,0.01]
[1729678119777,1.73002136,2581.4,2581.1,0.01]
[1729678120180,5.60374136,2581.5,2581.1,0.01]
[1729678120380,1.73002136,2581.4,2581.1,0.01]
[1729678122092,5.60404136,2581.3,2581.1,0.01]
[1729678122476,3.87416,2581.2,2581.0,0.8105]
[1729678122691,5.60404136,2581.3,2581.1,0.01]
[1729678124009,3.87402,2581.3,2581.1,0.01]
[1729678124209,5.60404136,2581.3,2581.1,0.01]
[1729678125181,3.87402,2581.3,2581.1,0.01]
[1729678125715,5.60404136,2581.3,2581.0,0.8105]
[1729678129217,9.47816136,2581.3,2581.0,0.8105]
[1729678129518,5.60404136,2581.3,2581.0,0.8105]
[1729678130697,3.87402,2581.3,2581.0,0.8105]
[1729678131085,5.60404136,2581.3,2581.0,0.8105]
[1729678132387,3.87402,2581.3,2581.0,0.8105]
[1729678133224,5.60404136,2581.3,2581.0,0.8105]
[1729678133521,3.87416,2581.2,2581.0,0.8105]
[1729678133749,5.60418136,2581.2,2581.0,0.8105]
[1729678134223,5.60404136,2581.3,2581.0,0.8105]
[1729678134429,3.87402,2581.3,2581.0,0.8105]
[1729678135030,1.73002136,2581.2,2581.0,0.8105]
[1729678135386,3.87402,2581.3,2581.0,0.8105]
[1729678135632,7.74812,2581.3,2581.0,0.8105]
[1729678135801,3.87402,2581.3,2581.0,0.8105]
[1729678137887,3.87417,2581.2,2581.0,0.8105]
[1729678138078,5.60419136,2581.2,2581.0,0.8105]
[1729678138283,5.60419136,2581.2,2580.8,0.8112]
[1729678138444,3.87434,2581.1,2580.9,0.01]
[1729678138844,5.60436136,2581.1,2580.9,0.01]
[1729678139040,5.60420136,2581.2,2580.9,0.01]
[1729678140460,9.47844136,2581.2,2580.9,0.01]
[1729678140664,3.87439,2581.1,2580.9,0.01]
[1729678140863,5.60420136,2581.2,2580.9,0.01]
[1729678141067,3.87434,2581.1,2580.9,0.01]
[1729678142964,5.60427136,2581.2,2580.9,0.01]
[1729678143873,5.95044136,2581.1,2580.9,0.01]
[1729678144229,4.22042,2581.1,2580.9,0.01]
[1729678144429,5.60434136,2581.1,2580.9,0.01]
[1729678145240,1.73002136,2581.0,2580.9,0.01]
[1729678145431,5.60434136,2581.1,2580.9,0.01]
[1729678146132,3.87432,2581.1,2580.9,0.01]
[1729678146330,3.87434,2581.1,2580.9,0.01]
[1729678146533,3.87427,2581.2,2580.9,0.01]
[1729678146754,9.47857136,2581.2,2580.9,0.01]
[1729678146956,5.60429136,2581.2,2580.9,0.01]
[1729678147638,3.87427,2581.2,2580.9,0.01]
[1729678147948,9.47856136,2581.2,2580.9,0.01]
[1729678148271,5.60429136,2581.2,2580.9,0.01]
[1729678149436,1.73002136,2581.1,2580.9,0.01]
[1729678149634,5.60441136,2581.1,2580.9,0.01]
[1729678149868,3.87439,2581.1,2580.9,0.01]
[1729678151579,5.95025136,2581.3,2580.9,0.01]
[1729678151871,3.87432,2581.1,2580.9,0.01]
[1729678152888,7.74874,2581.1,2580.9,0.01]
[1729678153078,3.87432,2581.1,2580.9,0.01]
[1729678153466,7.74874,2581.1,2580.9,0.01]
[1729678153762,3.87446,2581.0,2580.9,0.01]
[1729678154591,5.60448136,2581.0,2580.9,0.01]
[1729678154888,5.60434136,2581.1,2580.9,0.01]
[1729678155090,3.87446,2581.0,2580.9,0.01]
[1729678156092,3.87465,2580.9,2580.7,0.01]
[1729678156611,3.87476,2580.8,2580.7,0.01]
[1729678157156,3.87462,2580.9,2580.7,0.01]
[1729678157897,3.87422,2581.2,2580.7,1.74002136]
[1729678158099,3.87422,2581.2,2580.7,0.01]
[1729678158604,5.60424136,2581.2,2580.7,0.01]
[1729678159165,3.87439,2581.1,2580.7,0.01]
[1729678159958,1.73002136,2581.0,2580.7,0.01]
[1729678160164,3.87463,2580.9,2580.7,0.01]
[1729678160964,9.47881136,2581.1,2580.7,0.01]
[1729678161319,3.87439,2581.1,2580.7,0.01]
[1729678161782,5.60441136,2581.1,2580.7,0.01]
[1729678162097,3.87439,2581.1,2580.7,0.01]
[1729678163218,1.73002136,2580.9,2580.7,0.01]
[1729678163516,7.74937,2580.9,2580.7,0.01]
[1729678163702,3.87464,2580.9,2580.7,0.01]
[1729678164791,5.60466136,2580.9,2580.7,0.01]
[1729678165599,5.95060136,2581.0,2580.7,0.01]
[1729678165814,3.87464,2580.9,2580.7,0.01]
[1729678166113,5.60466136,2580.9,2580.7,0.01]
[1729678166673,3.87464,2580.9,2580.7,0.01]
[1729678167982,5.60466136,2580.9,2580.7,0.01]
[1729678168179,3.87464,2580.9,2580.7,0.01]
[1729678168613,5.60466136,2580.9,2580.7,0.01]
[1729678169135,5.60466136,2580.9,2580.5,0.01]
[1729678169418,3.87478,2580.8,2580.5,0.01]
[1729678169716,5.60466136,2580.9,2580.5,0.01]
[1729678170391,5.60485136,2580.8,2580.5,0.01]
[1729678170588,1.73002136,2580.6,2580.5,0.01]
[1729678170795,1.73002136,2580.7,2580.5,0.01]
[1729678171000,5.60497136,2580.7,2580.4,0.7937]
[1729678174588,1.73002136,2580.6,2580.4,0.7937]
[1729678175255,5.60523136,2580.5,2580.2,0.7608]
[1729678175721,1.73002136,2580.4,2580.2,0.7608]
[1729678177114,5.60523136,2580.5,2580.2,0.7608]
[1729678177342,1.73002136,2580.6,2580.2,0.7608]
[1729678177727,1.73002136,2580.5,2580.2,0.7608]
[1729678178550,5.60513136,2580.6,2580.2,0.7608]
[1729678179357,3.87501,2580.7,2580.2,2.49082136]
[1729678179520,5.60503136,2580.7,2580.5,0.8244]
[1729678183336,3.87501,2580.7,2580.5,0.8244]
[1729678183537,5.60503136,2580.7,2580.5,0.8244]
[1729678185322,1.73002136,2580.6,2580.5,0.8244]
[1729678186149,5.60503136,2580.7,2580.5,0.8244]
[1729678187325,5.60508136,2580.6,2580.2,0.64667814]
[1729678187529,5.60508136,2580.6,2580.4,0.01]
[1729678187831,5.60508136,2580.6,2580.2,0.64667814]
[1729678190853,3.87501,2580.7,2580.4,0.01]
[1729678190854,9.48004136,2580.7,2580.4,0.01]
[1729678191011,9.48007136,2580.7,2580.2,0.64667814]
[1729678191222,5.60503136,2580.7,2580.2,0.64667814]
[1729678191416,5.60510136,2580.6,2580.4,0.01]
[1729678192052,5.60510136,2580.6,2580.2,0.64667814]
[1729678192413,5.60530136,2580.5,2580.2,0.64667814]
[1729678192614,5.60530136,2580.5,2580.2,0.01]
[1729678192821,3.87528,2580.5,2580.2,0.01]
[1729678195954,3.87528,2580.5,2580.2,0.01]
[1729678197972,3.875,2580.7,2580.4,0.01]
[1729678198131,3.875,2580.7,2580.5,0.8139]
[1729678198640,5.60479136,2580.8,2580.5,0.8139]
[1729678200349,1.73002136,2580.8,2580.5,0.8139]
[1729678200556,3.87492,2580.7,2580.5,0.8139]
[1729678200742,5.60479136,2580.8,2580.5,0.8139]
[1729678200945,3.87457,2581.0,2580.6,0.01]
[1729678201150,3.87456,2581.0,2580.7,0.8139]
[1729678202172,9.47913136,2581.0,2580.7,0.8139]
[1729678203650,1.73002136,2580.9,2580.7,0.8139]
[1729678203835,1.73002136,2580.8,2580.7,0.8139]
[1729678204038,5.60478136,2580.8,2580.5,0.7639]
[1729678204375,5.60478136,2580.8,2580.2,5.494812]
[1729678204376,3.87522,2580.5,2580.3,0.7639]
[1729678204581,1.73002136,2580.4,2580.3,0.7639]
[1729678204879,3.87536,2580.4,2580.3,0.7639]
[1729678205242,5.60538136,2580.4,2580.3,0.7639]
[1729678205455,5.60538136,2580.4,2580.2,0.01]
[1729678205673,3.87536,2580.4,2580.2,0.01]
[1729678205980,1.73002136,2580.5,2580.2,0.01]
[1729678206284,3.87537,2580.4,2580.2,0.01]
[1729678206480,1.73002136,2580.5,2580.2,0.01]
[1729678206773,3.87538,2580.4,2580.2,0.01]
[1729678207283,5.60527136,2580.5,2580.2,0.01]
[1729678207975,5.60527136,2580.5,2580.0,0.01]
[1729678207976,5.60563136,2580.3,2580.0,0.01]
[1729678208183,5.60563136,2580.3,2579.9,0.754]
[1729678208184,5.60585136,2580.1,2579.9,0.754]
[1729678208744,5.60585136,2580.1,2579.7,0.754]
[1729678208745,3.87619,2579.9,2579.7,0.754]
[1729678208937,5.60631136,2579.8,2579.6,0.01]
[1729678209252,5.60629136,2579.8,2579.6,0.01]
[1729678209666,3.87627,2579.8,2579.6,0.01]
[1729678209853,5.60643136,2579.7,2579.6,0.01]
[1729678210058,1.73002136,2579.7,2579.3,0.754]
[1729678210372,5.60697136,2579.4,2579.1,0.754]
[1729678210540,1.73002136,2579.3,2579.1,0.754]
[1729678210742,1.73002136,2579.4,2579.1,0.754]
[1729678211190,5.60696136,2579.4,2579.1,0.754]
[1729678211541,1.73002136,2579.3,2579.1,0.754]
[1729678211737,5.60696136,2579.4,2579.1,0.754]
[1729678212178,1.73002136,2579.8,2579.4,0.01]
[1729678212380,3.87596,2580.0,2579.6,0.01]
[1729678212593,3.87598,2580.0,2579.6,0.01]
[1729678212817,3.87612,2579.9,2579.6,0.01]
[1729678213182,3.87598,2580.0,2579.6,0.01]
[1729678213378,1.73002136,2580.1,2579.6,1.03786614]
[1729678213617,5.99554778,2580.2,2579.8,0.01]
[1729678213825,5.99554778,2580.2,2579.9,0.7851]
[1729678214000,1.73002136,2580.1,2579.9,0.7851]
[1729678214180,5.99554778,2580.2,2579.9,0.7851]
[1729678214385,5.60575136,2580.2,2579.9,0.7851]
[1729678214743,9.48150136,2580.2,2579.9,0.7851]
[1729678214882,1.73002136,2580.1,2579.9,0.7851]
[1729678216519,1.73002136,2580.0,2579.9,0.7851]
[1729678216989,1.73002136,2580.1,2579.9,0.7851]
[1729678219533,9.48154136,2580.2,2579.9,0.7851]
[1729678219732,1.73002136,2580.1,2579.9,0.7851]
[1729678221450,9.48153136,2580.2,2579.9,0.7851]
[1729678221644,1.73002136,2580.1,2579.9,0.7851]
[1729678221951,9.48153136,2580.2,2579.9,0.7851]
[1729678222250,5.60575136,2580.2,2579.9,0.7851]
[1729678222843,3.87546,2580.4,2580.1,0.01]
[1729678223072,6.87515,2580.6,2580.2,0.8261]
[1729678223343,5.60509136,2580.6,2580.3,0.01]
[1729678223910,1.73002136,2580.5,2580.3,0.01]
[1729678226330,4.73002136,2580.7,2580.3,0.01]
[1729678226536,1.73002136,2580.6,2580.3,0.01]
[1729678226746,1.73002136,2580.5,2580.3,0.01]
[1729678227242,1.73002136,2580.6,2580.3,0.481167]
[1729678227647,5.60511136,2580.6,2580.3,0.01]
[1729678228014,1.73002136,2580.5,2580.3,0.01]
[1729678229174,1.73002136,2580.4,2580.3,0.01]
[1729678230562,1.73002136,2580.4,2580.0,0.7682]
[1729678230863,5.60561136,2580.3,2580.0,0.7682]
[1729678233024,5.60538136,2580.5,2580.0,4.64409]
[1729678233519,5.60546136,2580.4,2580.0,0.7682]
[1729678234781,1.73002136,2580.3,2580.0,0.7682]
[1729678234966,5.60554136,2580.3,2580.0,0.7682]
[1729678236066,3.87552,2580.3,2580.0,0.7682]
[1729678236475,5.60554136,2580.3,2580.0,0.7682]
[1729678236627,1.73002136,2580.4,2580.0,0.7682]
[1729678236827,5.95147136,2580.5,2580.0,0.7682]
[1729678237033,5.60537136,2580.5,2580.0,0.7682]
[1729678237268,1.73002136,2580.4,2580.0,0.7682]
[1729678237768,5.60537136,2580.5,2580.0,0.7682]
[1729678237973,3.87537,2580.4,2580.0,4.64416]
[1729678238171,1.73002136,2580.4,2580.0,4.64416]
[1729678238374,3.87531,2580.5,2580.2,0.759]
[1729678238672,5.60509136,2580.6,2580.3,0.01]
[1729678238875,1.73002136,2580.6,2580.3,0.01]
[1729678240272,1.73002136,2580.5,2580.3,0.01]
[1729678240456,5.60497136,2580.7,2580.3,0.01]
[1729678240770,1.73002136,2580.6,2580.3,0.01]
[1729678242336,1.73002136,2580.5,2580.3,0.01]
[1729678242764,5.60515136,2580.6,2580.3,0.01]
[1729678244772,1.73002136,2580.5,2580.3,0.01]
[1729678245281,5.60515136,2580.6,2580.3,0.01]
[1729678245659,1.73002136,2580.4,2580.3,0.01]
[1729678245978,4.22081,2580.9,2580.3,0.01]
[1729678246179,1.73002136,2580.6,2580.3,3.88543]
[1729678246385,7.74943,2580.9,2580.5,0.01]
[1729678246543,3.87478,2580.8,2580.5,0.01]
[1729678246740,1.73002136,2580.7,2580.5,0.01]
[1729678248040,3.87478,2580.8,2580.5,0.01]
[1729678248041,1.73002136,2580.8,2580.5,0.01]
[1729678248242,5.60479136,2580.8,2580.5,0.01]
[1729678248485,1.73002136,2580.6,2580.5,0.01]
[1729678250391,1.73002136,2580.7,2580.5,0.01]
[1729678250576,5.60479136,2580.8,2580.5,0.01]
[1729678250778,1.73002136,2580.8,2580.5,0.01]
[1729678251298,5.60464136,2580.9,2580.5,0.01]
[1729678251703,1.73002136,2580.8,2580.5,3.88517]
[1729678251860,1.73002136,2580.8,2580.7,0.01]
[1729678253560,3.87465,2580.9,2580.7,0.01]
[1729678253799,1.73002136,2580.8,2580.7,0.01]
[1729678255382,5.60478136,2580.8,2580.7,0.01]
[1729678259790,1.73002136,2580.8,2580.7,0.01]
[1729678261111,5.60464136,2580.9,2580.7,0.01]
[1729678261558,5.60451136,2581.0,2580.7,0.01]
[1729678261993,9.47908136,2581.0,2580.7,0.475964]